bitfinex-derivatives/quotes_ETHF0:USTF0_20250624
["timestamp","ask_amount","ask_price","bid_price","bid_amount"]
[1750749452066,2.45375912,2423.7,2423.4,0.82474]
[1750749452267,3.81795912,2423.7,2423.4,0.82474]
[1750749452463,1.3642,2423.7,2423.6,0.82469]
[1750749452664,2.45375912,2423.8,2423.6,0.82469]
[1750749452865,3.27840912,2423.8,2423.4,0.82474]
[1750749453065,1.3642,2423.7,2423.4,0.82474]
[1750749453364,2.18886,2423.7,2423.4,4.03254]
[1750749453557,2.18886,2423.7,2423.4,3.2078]
[1750749453758,2.18886,2423.7,2423.4,4.03255]
[1750749454378,2.45375912,2423.8,2423.4,3.2078]
[1750749454564,38.25873912,2424.0,2423.7,4.03245]
[1750749455062,2.0654,2424.0,2423.7,4.03245]
[1750749455269,2.0654,2424.0,2423.8,0.82461]
[1750749455461,0.6549,2424.0,2423.8,0.82461]
[1750749455663,2.45375912,2424.1,2424.0,0.82455]
[1750749455860,2.45375912,2424.5,2424.4,0.82442]
[1750749456055,2.45375912,2424.7,2424.4,3.2078]
[1750749456260,2.45375912,2424.9,2424.6,0.82433]
[1750749456463,2.45375912,2425.0,2424.5,7.6279]
[1750749456662,3.2078,2425.1,2424.5,2.7909]
[1750749456870,2.15596,2424.9,2424.5,0.6619]
[1750749457068,3.2078,2425.1,2424.7,0.82432]
[1750749457263,2.45375912,2425.2,2425.0,4.03201]
[1750749457465,36.97785912,2425.4,2425.0,4.032]
[1750749457664,35.8558,2425.4,2425.0,4.03201]
[1750749457864,0.82412,2425.3,2425.0,3.2078]
[1750749458066,34.5241,2425.4,2425.0,3.2078]
[1750749458271,33.7,2425.4,2425.0,4.03201]
[1750749458475,0.82412,2425.3,2425.0,3.2078]
[1750749458673,2.15582,2425.3,2425.0,3.2078]
[1750749459265,2.15582,2425.3,2425.1,0.82418]
[1750749459266,1.15164778,2425.2,2425.1,0.82418]
[1750749459467,33.002,2425.5,2425.0,3.2078]
[1750749459667,3.38978351,2425.4,2425.0,3.2078]
[1750749459963,1.15048351,2425.3,2425.0,4.032]
[1750749460167,1.4152,2425.4,2425.1,0.82416]
[1750749460374,2.23928,2425.4,2425.0,4.032]
[1750749460571,1.4152,2425.4,2425.1,0.82418]
[1750749461369,2.23929,2425.4,2425.0,4.03199]
[1750749461578,1.4152,2425.4,2425.1,0.82418]
[1750749462379,1.4152,2425.4,2425.2,0.82414]
[1750749462580,26.011,2425.4,2425.3,0.82411]
[1750749462877,1.3206,2425.8,2425.3,3.2078]
[1750749463081,6.963,2425.6,2425.5,0.82404]
[1750749463275,6.963,2425.6,2425.4,1.51115]
[1750749463581,6.963,2425.6,2425.4,1.51117]
[1750749463980,6.963,2425.6,2425.4,1.51116]
[1750749464778,6.963,2425.6,2425.4,0.6871]
[1750749464975,9.10763,2425.6,2425.3,3.2078]
[1750749465177,8.2836,2425.6,2425.3,3.2078]
[1750749465383,0.82408,2425.4,2425.3,3.2078]
[1750749465577,8.2836,2425.6,2425.3,3.2078]
[1750749465772,8.2836,2425.6,2424.4,0.82439]
[1750749465773,0.8243,2424.8,2424.4,0.82439]
[1750749465981,29.1788,2425.0,2424.3,0.82445]
[1750749466289,0.82436,2424.6,2424.3,0.82445]
[1750749466482,1.4025,2424.5,2424.2,8.44636]
[1750749466681,1.4025,2424.5,2424.2,7.6219]
[1750749467182,0.82432,2424.7,2424.4,0.82439]
[1750749467773,1.4025,2424.8,2424.2,7.6219]
[1750749467982,3.2078,2425.0,2424.7,0.8243]
[1750749468178,0.82422,2425.0,2424.7,0.8243]
[1750749468379,26.8282,2425.1,2424.7,0.8243]
[1750749468686,1.3829,2425.0,2424.8,0.82425]
[1750749469686,2.20712,2425.0,2424.7,4.0321]
[1750749470081,2.20713,2425.0,2424.7,4.03211]
[1750749470986,1.3829,2425.0,2424.9,0.82425]
[1750749471282,1.3829,2425.0,2424.8,0.82426]
[1750749471487,1.3829,2425.0,2424.9,0.82425]
[1750749471688,25.996,2425.3,2424.7,3.2078]
[1750749471884,0.82417,2425.2,2424.9,0.82424]
[1750749472082,2.21437,2425.2,2424.9,0.82424]
[1750749472684,1.3902,2425.2,2424.7,3.2078]
[1750749472893,1.3902,2425.2,2425.1,0.82418]
[1750749473392,1.3902,2425.2,2425.0,0.82419]
[1750749473790,1.3902,2425.2,2424.7,5.26857]
[1750749473791,1.3902,2425.2,2425.1,0.82418]
[1750749475190,1.3902,2425.2,2425.0,0.82419]
[1750749475378,1.3902,2425.2,2425.1,0.82418]
[1750749475794,25.996,2425.3,2425.1,0.82418]
[1750749476088,25.996,2425.3,2425.2,0.82415]
[1750749476283,28.45292518,2425.3,2425.2,0.82415]
[1750749476484,1.12552518,2425.3,2425.2,0.82415]
[1750749476684,6.961,2425.5,2425.4,0.82405]
[1750749476903,0.684,2425.7,2425.6,0.82401]
[1750749477091,1.12521327,2425.7,2425.6,0.82401]
[1750749477792,32.945,2425.8,2425.7,0.82398]
[1750749478087,36.30618254,2425.8,2425.6,0.82399]
[1750749478289,1.94953537,2425.7,2425.5,0.82402]
[1750749478490,0.82404,2425.5,2425.3,0.8241]
[1750749478795,27.3857,2425.4,2425.2,0.82412]
[1750749479288,27.3857,2425.4,2425.1,4.03196]
[1750749479484,1.12664356,2425.3,2425.2,0.82414]
[1750749479691,3.36247356,2425.3,2425.1,0.82417]
[1750749479999,1.4117,2425.3,2425.2,0.82415]
[1750749480286,2.53834365,2425.3,2425.2,0.82415]
[1750749480689,1.12664365,2425.3,2425.2,0.82415]
[1750749482189,1.95075365,2425.3,2425.2,0.82415]
[1750749482388,3.35425365,2425.3,2425.2,0.82415]
[1750749482590,2.53014365,2425.3,2425.2,0.82415]
[1750749482794,2.53014365,2425.3,2424.9,0.6776]
[1750749483086,0.82421,2425.1,2424.9,0.6776]
[1750749483292,1.95085365,2425.0,2424.9,0.82422]
[1750749483684,1.95085365,2425.0,2424.9,0.82425]
[1750749483884,3.28905365,2425.0,2424.9,0.82425]
[1750749484188,1.12664365,2425.0,2424.9,0.82425]
[1750749484591,0.82421,2425.0,2424.8,4.03207]
[1750749484784,1.3382,2425.1,2425.0,0.82421]
[1750749484990,1.13115207,2425.1,2425.0,0.82421]
[1750749490993,0.82373,2426.5,2425.3,2.06029]
[1750749491195,11.4922,2426.6,2426.3,0.82376]
[1750749491500,2.13812,2426.5,2426.2,0.8238]
[1750749491797,2.13812,2426.5,2425.9,3.2078]
[1750749491798,5.90528174,2426.5,2425.9,3.2078]
[1750749492100,3.2078,2426.3,2426.1,0.82384]
[1750749492306,34.3044,2426.2,2426.1,0.82384]
[1750749492599,36.1978,2426.3,2426.2,0.82381]
[1750749492914,36.2028,2426.3,2426.2,0.82381]
[1750749493592,3.2078,2426.3,2426.2,0.82381]
[1750749494401,4.03159,2426.3,2426.1,0.82383]
[1750749494700,3.2078,2426.3,2426.2,0.82381]
[1750749495101,4.5808,2426.3,2426.1,0.82383]
[1750749495295,26.83681,2426.2,2426.0,0.82386]
[1750749495601,1.373,2426.1,2426.0,0.82386]
[1750749496098,2.19686,2426.1,2425.9,0.8239]
[1750749496494,0.82389,2426.0,2425.8,0.82393]
[1750749496798,26.6666,2426.2,2425.8,0.82393]
[1750749496799,1.4075,2425.9,2425.8,0.82393]
[1750749497101,26.6666,2426.2,2426.1,0.82384]
[1750749497600,28.0741,2426.2,2426.1,0.82384]
[1750749498092,28.0741,2426.2,2426.0,0.82386]
[1750749498400,28.0741,2426.2,2426.1,0.82385]
[1750749498601,28.0741,2426.2,2425.8,2.05981]
[1750749498602,32.975,2426.2,2425.9,2.05974]
[1750749498792,26.008,2426.4,2426.0,5.26745]
[1750749499095,3.2078,2426.6,2426.5,0.82371]
[1750749499292,33.6283,2426.7,2426.6,0.82368]
[1750749499493,3.2078,2426.9,2426.4,2.05929]
[1750749499695,1.3399,2427.1,2426.6,3.2078]
[1750749499897,8.3079,2427.1,2426.7,2.74421]
[1750749500098,34.3269,2427.1,2427.0,0.82354]
[1750749500991,8.3079,2427.1,2427.0,0.82354]
[1750749501693,32.976,2427.1,2427.0,0.82354]
[1750749501893,7.6243,2427.3,2427.2,0.82347]
[1750749502092,34.45575,2427.3,2427.1,0.82348]
[1750749502298,2.80015,2427.3,2427.1,0.82348]
[1750749502496,26.003,2427.2,2427.1,0.82348]
[1750749502699,1.9767,2427.3,2427.2,0.82347]
[1750749503000,29.07197068,2427.3,2427.2,0.82347]
[1750749503197,3.06897068,2427.3,2427.2,0.82347]
[1750749503404,27.08527068,2427.3,2427.2,0.82347]
[1750749503797,1.09227068,2427.3,2427.2,0.82347]
[1750749504103,0.82332,2427.7,2427.4,0.82339]
[1750749504400,35.36100587,2427.6,2427.4,0.82339]
[1750749504595,1.09060587,2427.5,2427.4,0.82339]
[1750749504998,1.09060587,2427.5,2427.1,3.2078]
[1750749505199,35.09375,2427.6,2427.2,0.82347]
[1750749505393,1.91344089,2427.5,2427.3,0.82343]
[1750749505593,2.21787,2427.5,2427.3,0.82343]
[1750749506003,1.09014911,2427.4,2427.3,0.82343]
[1750749506203,2.21787,2427.5,2427.2,0.82345]
[1750749506504,4.59088174,2427.3,2426.7,0.82363]
[1750749506705,36.78486212,2427.2,2426.7,0.82363]
[1750749507004,0.82356,2427.0,2426.8,0.82359]
[1750749507298,25.97,2426.9,2426.8,0.82361]
[1750749507496,25.967,2426.9,2426.8,0.82361]
[1750749507698,0.82353,2427.1,2426.8,0.82361]
[1750749507897,1.3775,2427.2,2426.6,4.59088174]
[1750749508104,0.82356,2427.0,2426.7,0.82365]
[1750749508295,0.82356,2427.0,2426.8,0.82361]
[1750749508494,2.17116,2427.0,2426.8,0.82361]
[1750749508705,0.82358,2426.9,2426.7,0.82363]
[1750749509004,1.3476,2426.9,2426.8,0.82362]
[1750749509198,2.1712,2426.9,2426.7,0.82363]
[1750749509405,0.82362,2426.8,2426.5,3.2078]
[1750749509600,2.17122,2426.8,2426.5,3.2078]
[1750749509804,1.3476,2426.8,2426.5,3.2078]
[1750749510104,0.82368,2426.6,2426.3,0.7145]
[1750749510307,0.82368,2426.6,2426.4,0.82373]
[1750749510499,2.17132,2426.5,2426.4,0.82373]
[1750749511010,1.3476,2426.5,2426.4,0.82373]
[1750749511597,1.51981,2426.6,2426.5,0.82372]
[1750749511598,0.6961,2426.6,2426.5,0.82372]
[1750749513107,0.82372,2426.5,2426.4,0.82373]
[1750749513499,2.18262,2426.5,2426.4,0.82373]
[1750749513702,1.3589,2426.5,2426.4,0.82373]
[1750749517201,3.2078,2426.7,2426.6,0.82369]
[1750749519501,3.2078,2427.2,2427.1,0.82352]
[1750749519710,5.12515304,2427.2,2427.1,0.82352]
[1750749519908,4.30167304,2427.2,2427.1,0.82352]
[1750749520711,1.09387304,2427.2,2427.1,0.82352]
[1750749522016,1.09387304,2427.2,2427.1,4.03132]
[1750749522809,1.09387304,2427.2,2427.1,0.82352]
[1750749523313,3.2078,2427.6,2427.5,0.82338]
[1750749523510,30.15954885,2427.6,2427.5,0.82338]
[1750749523909,30.15454885,2427.6,2427.5,0.82338]
[1750749524107,32.36888885,2427.6,2427.5,0.82338]
[1750749525214,31.54554885,2427.6,2427.5,0.82338]
[1750749525410,32.36888885,2427.6,2427.5,0.82338]
[1750749525612,31.54554885,2427.6,2427.5,0.82338]
[1750749526305,31.54554885,2427.6,2427.2,0.7023]
[1750749526507,30.4618,2427.6,2427.5,0.82338]
[1750749526708,31.54497421,2427.6,2427.5,0.82338]
[1750749527612,32.36834421,2427.6,2427.4,0.82341]
[1750749527908,1.08317421,2427.5,2427.4,0.82341]
[1750749529020,26.89817421,2427.5,2427.4,0.82341]
[1750749530211,27.72158421,2427.5,2427.3,0.82344]
[1750749530509,1.08317421,2427.4,2427.3,0.82344]
[1750749530709,1.90659421,2427.4,2427.3,0.82344]
[1750749530920,0.82346,2427.3,2427.2,0.82347]
[1750749531221,11.25197421,2427.3,2426.8,0.7066]
[1750749531412,0.82366,2426.7,2426.6,0.22566396]
[1750749531613,29.87946,2426.7,2426.6,0.22566396]
[1750749531920,30.96263421,2426.7,2426.6,0.22566396]
[1750749532121,32.38143421,2426.7,2426.6,0.22566396]
[1750749532816,0.8237,2426.6,2426.4,0.82374]
[1750749533120,1.08317421,2426.5,2426.4,0.82374]
[1750749533519,1.08317421,2426.5,2426.4,4.03154]
[1750749533721,0.82365,2426.8,2426.4,3.2078]
[1750749534019,25.835,2426.6,2426.5,0.82373]
[1750749534211,26.91894809,2426.6,2426.5,0.82373]
[1750749535115,1.08394809,2426.6,2426.5,0.82373]
[1750749535319,32.78,2426.8,2426.7,0.82366]
[1750749535619,1.08392389,2426.8,2426.7,0.82366]
[1750749538524,2.50462389,2426.8,2426.7,0.82366]
[1750749540925,26.88092389,2426.8,2426.7,0.82366]
[1750749541230,28.30162389,2426.8,2426.7,0.82366]
[1750749542523,26.88092389,2426.8,2426.7,0.82366]
[1750749543127,3.9323,2427.3,2427.2,0.82349]
[1750749543331,37.66014352,2427.3,2427.2,0.82349]
[1750749543621,39.07684352,2427.3,2427.2,0.82349]
[1750749543818,39.08084352,2427.3,2427.2,0.82349]
[1750749544119,39.07984352,2427.3,2427.2,0.82349]
[1750749544712,0.82352,2427.2,2427.0,0.82355]
[1750749544915,2.40864352,2427.1,2427.0,0.82355]
[1750749545827,3.23217352,2427.1,2427.0,0.82355]
[1750749546024,2.40864352,2427.1,2427.0,0.82355]
[1750749546726,1.08484352,2427.1,2427.0,0.82355]
[1750749546922,1.08528671,2427.1,2427.0,0.82356]
[1750749547722,2.05891,2427.0,2426.2,6.865]
[1750749547931,0.82375,2426.5,2426.4,0.82377]
[1750749548236,26.83828671,2426.5,2426.4,0.82377]
[1750749548617,1.08528671,2426.5,2426.4,0.82377]
[1750749550217,25.773,2426.6,2426.5,0.82373]
[1750749550527,26.86007711,2426.6,2426.5,0.82373]
[1750749551231,26.85998217,2426.6,2426.5,0.82373]
[1750749553630,1.08698217,2426.6,2426.5,0.82373]
[1750749553929,1.08698217,2426.6,2426.0,3.2078]
[1750749553930,38.47315391,2426.6,2426.0,3.2078]
[1750749554123,0.82382,2426.3,2426.2,0.82383]
[1750749554428,34.56080217,2426.3,2426.2,0.82383]
[1750749554731,35.95330217,2426.3,2426.1,0.82384]
[1750749554927,1.91081217,2426.2,2426.1,0.82384]
[1750749555132,2.47948217,2426.2,2426.1,0.82384]
[1750749555331,3.30331217,2426.2,2426.1,0.82384]
[1750749555529,0.82387,2426.1,2426.0,3.2078]
[1750749555827,0.82396,2425.9,2425.8,0.82396]
[1750749556128,7.95343664,2425.9,2425.4,0.82409]
[1750749556330,0.82404,2425.6,2425.4,0.82409]
[1750749556532,25.781,2425.5,2425.4,0.82409]
[1750749557427,26.60507,2425.5,2425.3,0.82411]
[1750749557617,1.4202,2425.4,2425.3,0.82411]
[1750749558229,1.4202,2425.4,2424.8,3.38661]
[1750749558230,0.82417,2425.2,2425.0,0.82423]
[1750749558437,25.779,2425.1,2425.0,0.82422]
[1750749558630,25.779,2425.1,2424.8,3.9068]
[1750749558631,26.60322,2425.1,2424.9,0.82427]
[1750749558938,26.60322,2425.1,2425.0,0.82424]
[1750749559127,25.779,2425.1,2425.0,0.82424]
[1750749559633,27.1992,2425.1,2424.8,3.9068]
[1750749559824,27.1992,2425.1,2425.0,0.82424]
[1750749560426,28.02341,2425.1,2424.9,0.82426]
[1750749560625,27.1992,2425.1,2425.0,0.82424]
[1750749560821,27.1992,2425.1,2424.8,3.9068]
[1750749560822,28.02343,2425.1,2424.9,0.82426]
[1750749561022,37.274,2425.1,2424.6,0.6838]
[1750749561232,4.96715221,2425.0,2424.4,0.6985]
[1750749561430,2.52165221,2424.9,2424.4,0.6985]
[1750749561623,0.8244,2424.6,2424.4,1.52293]
[1750749561819,25.775,2424.5,2424.4,1.52293]
[1750749562224,25.775,2424.5,2424.4,0.82444]
[1750749562425,27.2115,2424.5,2424.4,0.82444]
[1750749562627,27.2115,2424.5,2424.1,0.6985]
[1750749562935,27.2115,2424.5,2424.4,0.82444]
[1750749564029,25.769,2424.5,2424.1,2.75982]
[1750749564230,25.769,2424.5,2424.1,0.6985]
[1750749564532,25.769,2424.5,2424.3,0.82446]
[1750749564533,1.4177,2424.4,2424.3,0.82446]
[1750749564738,1.4177,2424.4,2424.3,0.82448]
[1750749565426,7.5745,2424.6,2424.1,0.6985]
[1750749565427,3.2078,2424.7,2424.2,2.06128]
[1750749565627,32.623,2424.6,2424.1,2.1226]
[1750749565933,2.27034,2424.5,2424.3,0.82446]
[1750749566231,0.82444,2424.4,2424.3,0.82446]
[1750749566535,1.4459,2424.4,2424.3,0.82446]
[1750749566731,32.623,2424.6,2424.4,0.82442]
[1750749566938,1.4459,2424.5,2424.4,0.82442]
[1750749567430,2.27031,2424.5,2424.4,0.82442]
[1750749567636,2.27031,2424.5,2424.2,0.82451]
[1750749567637,0.8245,2424.3,2424.2,0.82451]
[1750749567939,25.746,2424.3,2424.1,0.6985]
[1750749568135,2.27041,2424.2,2424.0,1.51605]
[1750749568525,1.4459,2424.2,2424.1,0.82455]
[1750749568731,2.27041,2424.2,2424.1,0.82455]
[1750749570132,3.50727,2424.2,2423.8,0.6787]
[1750749570338,0.82462,2423.9,2423.8,0.6787]
[1750749570528,3.2078,2424.1,2423.6,0.7158]
[1750749570723,32.6,2424.0,2423.6,2.77757]
[1750749571029,33.42459,2424.0,2423.6,0.7158]
[1750749571333,1.3095,2424.0,2423.9,0.82462]
[1750749571534,33.9065,2424.0,2423.8,0.82463]
[1750749571735,0.82464,2423.9,2423.7,0.82466]
[1750749571923,1.3541,2423.8,2423.7,0.82466]
[1750749572236,1.3541,2423.8,2423.6,1.5405]
[1750749572426,0.82468,2423.7,2423.6,1.5405]
[1750749572629,0.82468,2423.7,2423.1,12.13996]
[1750749572630,25.724,2423.7,2423.1,5.26996]
[1750749572829,1.3541,2423.6,2423.4,0.82476]
[1750749573031,0.82475,2423.5,2423.4,0.82476]
[1750749573330,0.82477,2423.5,2423.3,0.8248]
[1750749573530,0.82478,2423.4,2423.1,3.2078]
[1750749573838,26.5488,2423.4,2423.0,1.3188]
[1750749574043,0.82483,2423.3,2423.1,0.82487]
[1750749574335,2.17893,2423.3,2423.1,0.82487]
[1750749574524,2.17893,2423.3,2422.9,0.82494]
[1750749574525,0.82491,2423.1,2422.9,0.82494]
[1750749574728,27.0801,2423.0,2422.9,0.82494]
[1750749574944,3.8905,2423.2,2423.1,0.82489]
[1750749575126,3.8905,2423.2,2423.0,0.8249]
[1750749575127,34.06955,2423.2,2423.0,0.8249]
[1750749575333,34.06957,2423.2,2423.1,0.82489]
[1750749575634,33.2447,2423.2,2423.1,0.82489]
[1750749576137,34.06955,2423.2,2423.1,0.82489]
[1750749576335,0.6827,2423.2,2423.1,0.82489]
[1750749576646,25.73,2423.2,2422.8,2.06242]
[1750749576941,26.55485,2423.2,2423.1,0.82488]
[1750749577145,27.94385,2423.2,2423.1,0.82488]
[1750749577440,27.119,2423.2,2423.1,0.82488]
[1750749577842,0.6827,2423.5,2423.4,0.82478]
[1750749578038,33.2377,2423.5,2423.4,0.82478]
[1750749578242,33.2377,2423.5,2423.0,2.06226]
[1750749578243,25.723,2423.5,2423.0,5.2701]
[1750749578433,3.2078,2423.6,2423.1,0.6977]
[1750749578740,33.9662,2423.5,2423.3,0.82477]
[1750749578948,33.9662,2423.5,2423.0,3.2078]
[1750749578949,33.9662,2423.5,2423.0,0.82487]
[1750749579133,3.2078,2423.3,2423.0,0.82487]
[1750749579443,1.4152,2423.2,2423.1,0.82486]
[1750749579945,3.2078,2423.3,2423.2,0.82482]
[1750749580138,28.9248,2423.3,2423.2,0.82482]
[1750749580850,3.2078,2423.3,2423.2,0.82482]
[1750749581140,3.2078,2423.3,2423.2,5.82482]
[1750749581342,27.96387,2423.7,2423.6,0.82469]
[1750749581542,0.8247,2423.6,2423.5,0.82471]
[1750749581744,26.54867,2423.7,2423.6,0.82469]
[1750749581930,25.724,2423.7,2423.6,0.82469]
[1750749582234,25.725,2424.0,2423.9,0.82456]
[1750749582440,25.725,2424.0,2423.5,3.2078]
[1750749582642,29.10872,2424.0,2423.5,0.82471]
[1750749582939,0.82467,2423.7,2423.6,0.82468]
[1750749583143,27.0473,2424.0,2423.4,4.6392]
[1750749583346,0.82462,2423.8,2423.7,3.2078]
[1750749583545,0.82473,2423.5,2423.4,0.82474]
[1750749583745,0.8247,2423.6,2423.5,0.82471]
[1750749583950,0.8247,2423.6,2423.4,0.82474]
[1750749584142,0.82463,2423.8,2423.6,0.82467]
[1750749584836,0.82463,2423.8,2423.7,0.82465]
[1750749585238,25.729,2423.8,2423.7,0.82465]
[1750749585438,0.82465,2423.7,2423.6,0.82466]
[1750749585634,26.55364,2423.8,2423.7,0.82465]
[1750749585834,27.6353366,2423.8,2423.7,0.82465]
[1750749586052,0.82466,2423.7,2423.6,0.82466]
[1750749586347,0.82467,2423.7,2423.6,0.82468]
[1750749586549,1.90653406,2423.7,2423.6,0.82468]
[1750749587245,1.08186406,2423.7,2423.6,0.82468]
[1750749587741,1.90651406,2423.7,2423.6,0.82468]
[1750749588839,1.08186406,2423.7,2423.3,2.7622]
[1750749589049,1.90658406,2423.6,2423.5,0.82472]
[1750749590042,0.82475,2423.4,2423.3,0.6783]
[1750749590249,28.86275406,2423.4,2422.8,0.6881]
[1750749590442,0.82487,2423.1,2423.0,0.82487]
[1750749590744,0.82481,2423.3,2423.2,0.82481]
[1750749590951,1.90965329,2423.3,2423.2,0.82481]
[1750749591446,1.08484329,2423.3,2423.2,0.82481]
[1750749591841,1.90963329,2423.3,2423.2,0.82481]
[1750749592145,1.08484329,2423.3,2423.2,0.82481]
[1750749593848,1.08484329,2423.3,2423.2,4.03261]
[1750749594042,28.16707707,2423.7,2423.6,0.82468]
[1750749594240,3.27168707,2423.9,2423.8,0.82462]
[1750749594448,0.82461,2423.9,2423.8,0.82462]
[1750749595144,0.82462,2423.8,2423.7,1.52973]
[1750749595350,0.82462,2423.8,2423.7,0.7051]
[1750749596450,0.82462,2423.8,2423.7,1.52975]
[1750749596942,0.82465,2423.7,2423.6,0.82467]
[1750749597145,0.82465,2423.7,2423.3,3.924]
[1750749597146,3.27171707,2423.8,2423.7,0.82465]
[1750749597347,2.44707707,2423.8,2423.7,0.82465]
[1750749597541,3.27168707,2423.9,2423.8,0.82462]
[1750749597847,2.44707707,2423.9,2423.8,0.82462]
[1750749598147,32.19843707,2424.0,2423.9,0.82458]
[1750749598339,28.99060707,2424.1,2424.0,0.82455]
[1750749598535,28.99060707,2424.1,2423.9,3.2078]
[1750749598536,28.99060707,2424.1,2423.9,0.82458]
[1750749598539,0.82456,2424.0,2423.9,0.82458]
[1750749598737,0.8246,2423.9,2423.8,0.82461]
[1750749598947,3.2893509,2424.0,2423.9,0.82459]
[1750749599549,2.4647709,2424.0,2423.8,0.8246]
[1750749599752,3.2893409,2424.0,2423.9,0.82459]
[1750749600052,0.82459,2423.9,2423.8,0.8246]
[1750749600353,0.82459,2423.9,2423.7,0.82464]
[1750749600354,4.6904809,2423.9,2423.7,0.82464]
[1750749600555,3.8658709,2423.9,2423.8,0.82462]
[1750749600745,3.8658709,2423.9,2423.7,0.82465]
[1750749600948,4.5869709,2423.9,2423.8,0.82462]
[1750749601846,5.6725709,2424.0,2423.9,0.82459]
[1750749602049,31.3915709,2424.0,2423.9,0.82459]
[1750749602249,5.6725709,2424.0,2423.9,0.82459]
[1750749602746,5.6725709,2424.0,2423.8,0.7019]
[1750749602945,5.6725709,2424.0,2423.9,0.82459]
[1750749603141,6.9915709,2424.0,2423.9,0.82459]
[1750749603445,6.9915709,2424.0,2423.8,0.7019]
[1750749603654,0.82462,2423.8,2423.7,0.82463]
[1750749604044,1.319,2423.8,2423.7,0.82463]
[1750749605050,0.9725,2423.8,2423.7,0.82463]
[1750749605743,3.1534709,2423.9,2423.8,0.82462]
[1750749605947,5.6725709,2424.0,2423.9,0.82459]
[1750749606154,4.29011313,2424.0,2423.9,0.82459]
[1750749606446,6.75488403,2424.0,2423.9,0.82459]
[1750749607746,4.29011313,2424.0,2423.9,0.82459]
[1750749608251,1.08231313,2424.0,2423.9,0.82459]
[1750749615050,2.4647709,2424.3,2424.0,2.0614]
[1750749615250,29.5893,2424.4,2424.3,0.82445]
[1750749615443,31.0041,2424.4,2424.3,0.82445]
[1750749615943,31.0041,2424.4,2424.2,0.82448]
[1750749616158,31.0041,2424.4,2424.0,0.672]
[1750749616159,0.8245,2424.2,2424.1,0.82449]
[1750749616365,2.42571163,2424.2,2424.1,0.82449]
[1750749616548,3.84051163,2424.2,2424.1,0.82449]
[1750749618354,4.66500163,2424.2,2424.1,0.82449]
[1750749618960,4.66501163,2424.2,2424.0,0.82453]
[1750749619259,28.13871163,2424.1,2424.0,0.82453]
[1750749619466,29.47751163,2424.1,2424.0,0.82453]
[1750749620553,29.47751163,2424.1,2423.8,3.2078]
[1750749620554,36.29751163,2424.1,2423.8,3.2078]
[1750749620755,3.9814509,2424.0,2423.9,0.82459]
[1750749620955,7.77376253,2424.0,2423.9,0.82459]
[1750749621953,6.94918253,2424.0,2423.9,0.82459]
[1750749622359,39.48118253,2424.0,2423.9,0.82459]
[1750749623159,40.30574253,2424.0,2423.9,0.82459]
[1750749623359,0.82461,2423.9,2423.8,0.82461]
[1750749623559,7.71299253,2423.9,2423.8,0.82461]
[1750749623949,7.71299253,2423.9,2423.3,3.8669]
[1750749623950,6.88838253,2423.9,2423.3,3.8669]
[1750749624148,2.42571163,2423.4,2423.3,0.8248]
[1750749624356,28.13771163,2423.4,2423.0,3.2078]
[1750749624552,2.42571163,2423.2,2423.0,4.03269]
[1750749624765,25.712,2423.1,2423.0,3.2078]
[1750749624953,27.0494,2423.1,2423.0,4.0327]
[1750749625154,27.0494,2423.1,2423.0,0.8249]
[1750749625751,28.9208,2423.3,2423.2,0.82483]
[1750749627263,29.99591847,2423.3,2423.2,0.82483]
[1750749628165,26.78811847,2423.3,2423.2,0.82483]
[1750749629455,1.07511847,2423.3,2423.2,0.82483]
[1750749630166,14.5265709,2423.7,2423.6,0.8247]
[1750749630167,3.9034,2423.7,2423.6,0.8247]
[1750749630363,28.9208,2423.7,2423.6,0.8247]
[1750749630564,29.99550202,2423.7,2423.6,0.8247]
[1750749630862,1.07470202,2423.7,2423.6,4.0325]
[1750749632159,0.6866,2424.0,2423.9,0.82459]
[1750749632361,1.76185528,2424.0,2423.9,0.82459]
[1750749633569,1.07525528,2424.0,2423.9,0.82459]
[1750749636464,1.07525528,2424.0,2423.9,4.03239]
[1750749636969,25.711,2424.2,2423.9,4.03239]
[1750749637272,0.6588,2424.4,2424.3,0.82446]
[1750749637471,2.4647709,2424.5,2424.4,0.82442]
[1750749637970,3.27252303,2424.8,2424.7,0.82432]
[1750749639269,3.27252303,2424.8,2424.5,0.7136]
[1750749639481,0.82432,2424.8,2424.5,0.82436]
[1750749639675,1.415,2424.7,2424.5,0.82436]
[1750749639970,1.415,2424.7,2424.6,0.82436]
[1750749641079,0.82436,2424.6,2424.3,3.9064]
[1750749641372,28.9118,2424.6,2424.3,0.82444]
[1750749641672,0.82453,2424.1,2424.0,2.22054]
[1750749641982,0.82459,2424.0,2423.9,0.82459]
[1750749642274,0.82459,2424.0,2423.8,0.8246]
[1750749642777,0.82461,2423.9,2423.7,0.82465]
[1750749643271,0.82463,2423.8,2423.6,1.50358]
[1750749643473,2.2758,2423.9,2423.6,0.6789]
[1750749643672,2.2758,2423.9,2423.8,0.82463]
[1750749643872,1.4512,2423.9,2423.8,0.82463]
[1750749644070,2.27581,2423.9,2423.7,0.82464]
[1750749644272,2.27581,2423.9,2423.8,0.82463]
[1750749644467,1.4512,2423.9,2423.8,0.82463]
[1750749644773,3.899,2424.0,2423.9,0.82459]
[1750749645469,4.72356,2424.0,2423.9,0.82459]
[1750749645976,3.899,2424.0,2423.9,0.82459]
[1750749646868,3.2078,2424.0,2423.9,0.82459]
[1750749647172,4.03236,2424.0,2423.9,0.82459]
[1750749647475,3.2078,2424.0,2423.9,0.82459]
[1750749649072,0.82451,2424.2,2424.0,0.82454]